bitfinex-derivatives/quotes_ETHF0:USTF0_20250404
["timestamp","ask_amount","ask_price","bid_price","bid_amount"]
[1743765428317,5.29610217,1781.7,1781.2,8.77326]
[1743765428517,5.29610217,1781.7,1781.5,1.1227]
[1743765428817,5.29610217,1781.7,1781.6,1.12267]
[1743765429013,5.29610217,1781.7,1781.3,7.5708]
[1743765429319,5.29610217,1781.7,1781.4,1.12274]
[1743765429519,3.2078,1781.5,1781.3,5.48581]
[1743765429716,1.4091,1781.4,1781.3,5.48581]
[1743765430219,1.4091,1781.4,1781.3,4.363]
[1743765430417,1.4091,1781.4,1781.3,1.12286]
[1743765431413,1.4091,1781.4,1781.2,1.12286]
[1743765431720,3.2078,1781.3,1781.2,1.12286]
[1743765432018,3.2078,1781.3,1780.9,43.60778]
[1743765432320,1.5282,1781.2,1781.1,1.12295]
[1743765432619,1.12299,1781.1,1780.9,5.48507]
[1743765432815,1.5282,1781.0,1780.8,1.12313]
[1743765433020,1.5282,1781.0,1780.9,1.12311]
[1743765433208,2.65129,1781.0,1780.8,41.92317]
[1743765433409,3.2078,1780.9,1780.8,41.92318]
[1743765433617,4.736,1780.9,1780.8,1.12318]
[1743765433917,1.12318,1780.8,1780.7,0.00843217]
[1743765434117,0.01126674,1780.7,1780.6,1.1233]
[1743765434317,3.21906674,1780.7,1780.6,1.1233]
[1743765434508,0.7455,1780.7,1780.6,1.1233]
[1743765434819,0.7455,1780.7,1780.6,1.11203326]
[1743765435416,0.7455,1780.7,1780.5,40.80843217]
[1743765435616,1.4994,1780.6,1780.5,0.00843217]
[1743765436011,2.2463,1780.6,1780.5,1.13179217]
[1743765436619,0.00843217,1780.8,1780.7,1.12324]
[1743765437519,2.17e-06,1780.8,1780.7,6.83104]
[1743765438017,3.2078,1781.9,1780.7,59.67962803]
[1743765438218,1.4609,1782.1,1782.0,1.12242]
[1743765438522,4.78092714,1782.1,1781.8,5.4845]
[1743765438723,5.90328714,1782.1,1781.8,5.4845]
[1743765438924,6.17012714,1782.1,1781.8,4.362]
[1743765439126,1.12248,1781.9,1781.8,4.37043217]
[1743765439424,6.17855931,1782.1,1781.8,4.37043217]
[1743765439620,7.30091931,1782.1,1781.8,5.49293217]
[1743765439818,6.17855931,1782.1,1781.9,1.12246]
[1743765440026,1.50985931,1782.1,1782.0,1.12242]
[1743765440214,0.12065931,1782.1,1782.0,1.12242]
[1743765440420,0.12065931,1782.1,1782.0,3.62242]
[1743765441019,0.12065931,1782.1,1782.0,4.05277134]
[1743765441224,0.00843217,1782.1,1782.0,4.05277134]
[1743765441820,0.00843217,1782.1,1782.0,1.12242]
[1743765442129,0.00843217,1782.1,1782.0,46.28342]
[1743765442626,0.00843217,1782.1,1782.0,5.48342]
[1743765442822,0.00843217,1782.1,1782.0,4.361]
[1743765443027,0.00843217,1782.1,1782.0,46.28342]
[1743765443227,0.00843217,1782.1,1782.0,48.78342]
[1743765444732,2.17e-06,1782.1,1782.0,84.51102]
[1743765445124,2.17e-06,1782.1,1782.0,85.91622]
[1743765445932,2.17e-06,1782.1,1782.0,91.88222]
[1743765448731,3.2078,1782.8,1782.7,1.12198]
[1743765449030,1.4462,1782.9,1782.8,1.12192]
[1743765449331,1.4462,1782.9,1782.7,4.359]
[1743765449532,1.4462,1782.9,1782.8,1.12192]
[1743765450532,1.4462,1782.9,1782.7,4.359]
[1743765450832,4.654,1782.9,1782.7,4.359]
[1743765451229,1.4462,1782.9,1782.8,1.12192]
[1743765451538,1.4462,1782.9,1782.7,4.359]
[1743765451733,1.4462,1782.9,1782.7,5.48095]
[1743765452036,1.4462,1782.9,1782.8,1.12192]
[1743765452538,1.4462,1782.9,1782.7,5.48093]
[1743765452839,4.654,1782.9,1782.8,1.12192]
[1743765453038,1.4462,1782.9,1782.8,1.12192]
[1743765453536,4.654,1782.9,1782.7,4.359]
[1743765453735,4.654,1782.9,1782.8,1.12192]
[1743765453935,1.4462,1782.9,1782.8,1.12192]
[1743765454133,1.4462,1782.9,1782.8,2.52972]
[1743765454535,1.4462,1782.9,1782.8,1.12192]
[1743765454836,1.12192,1782.8,1782.7,4.359]
[1743765455140,1.4462,1782.9,1782.8,1.12192]
[1743765455341,1.4462,1782.9,1782.8,2.52972]
[1743765456440,1.4462,1782.9,1782.8,1.12192]
[1743765456628,1.4462,1782.9,1782.8,5.47892]
[1743765458136,0.70003217,1783.0,1782.9,1.12185]
[1743765458440,0.70003217,1783.0,1782.9,2.60525]
[1743765458441,0.00843217,1783.0,1782.9,2.60525]
[1743765459640,0.00843217,1783.0,1782.9,5.81305]
[1743765459939,8.63112,1783.9,1782.9,5.81305]
[1743765459940,3.2078,1784.0,1783.4,2.80382]
[1743765460241,3.2078,1783.6,1783.2,1.3891]
[1743765460543,4.6956,1783.8,1783.5,1.12148]
[1743765460746,3.2078,1783.6,1783.4,1.12152]
[1743765460946,3.2078,1783.6,1783.5,0.00840831]
[1743765461134,4.32921,1783.6,1783.5,0.00840831]
[1743765461338,8.30191,1783.6,1783.5,0.00840831]
[1743765461534,5.80191,1783.6,1783.5,0.00840831]
[1743765461743,5.80191,1783.6,1783.5,1.12988831]
[1743765461744,4.6805,1783.6,1783.5,1.12988831]
[1743765462040,1.4727,1783.6,1783.5,1.12988831]
[1743765463542,8.30191,1783.6,1783.5,0.00840831]
[1743765464545,7.1805,1783.6,1783.2,5.47665]
[1743765464745,2.80417,1783.2,1782.8,1.12188]
[1743765464944,3.2078,1782.9,1782.8,1.12188]
[1743765465345,1.12196,1782.8,1782.5,4.354]
[1743765465545,4.6397,1782.8,1782.7,1.12198]
[1743765465742,1.12204,1782.6,1782.5,5.48448831]
[1743765465949,4.32984,1782.6,1782.5,0.00840831]
[1743765466351,3.2078,1782.6,1782.5,1.1221]
[1743765466543,4.64810831,1782.8,1782.3,2.80558]
[1743765466743,1.4319,1782.5,1782.4,1.12217]
[1743765467253,3.21620831,1782.8,1782.6,1.12204]
[1743765467439,3.21620831,1782.8,1782.3,4.30477]
[1743765467440,1.12204,1782.6,1782.5,4.354]
[1743765467749,1.4319,1782.7,1782.6,1.12204]
[1743765468051,0.00840831,1782.8,1782.7,1.12198]
[1743765468349,1.13036831,1782.8,1782.5,5.47608]
[1743765468543,1.4692,1782.7,1782.5,5.47608]
[1743765469146,5.79899,1782.7,1782.4,2.58554]
[1743765469345,4.677,1782.7,1782.5,5.47709]
[1743765469650,5.3933,1782.7,1782.6,1.12204]
[1743765469948,2.1855,1782.7,1782.6,1.12204]
[1743765470252,0.7163,1782.7,1782.6,1.12204]
[1743765470449,0.00840831,1782.8,1782.7,1.12198]
[1743765470846,0.00840831,1782.8,1782.7,3.62198]
[1743765471043,0.00840831,1782.8,1782.7,6.82978]
[1743765471646,0.00840831,1782.8,1782.7,1.12198]
[1743765471848,0.00840831,1782.8,1782.6,1.12204]
[1743765472049,0.00840831,1782.8,1782.7,1.4746]
[1743765473053,2.63102831,1782.8,1782.7,1.4746]
[1743765473247,1.50910831,1782.8,1782.7,1.4746]
[1743765473553,0.00840831,1782.8,1782.7,1.4746]
[1743765474052,0.00840831,1782.8,1782.7,2.59658]
[1743765474854,0.00840831,1782.8,1782.7,1.4746]
[1743765475047,0.00840831,1782.8,1782.7,2.59658]
[1743765475247,0.00840831,1782.8,1782.7,5.09658]
[1743765476757,3.2078,1783.4,1783.2,1.12166]
[1743765477058,2.9743,1783.5,1783.3,5.7943]
[1743765477348,0.7464,1783.5,1783.4,1.4403]
[1743765477553,2.2427,1783.5,1783.3,4.354]
[1743765477854,2.2427,1783.5,1783.3,4.36240831]
[1743765478161,3.36419,1783.5,1783.3,4.36240831]
[1743765478457,2.2427,1783.5,1783.3,4.36240831]
[1743765478650,3.36418,1783.5,1783.3,4.36240831]
[1743765478957,2.2427,1783.5,1783.3,4.36240831]
[1743765479451,2.2427,1783.5,1783.4,1.4403]
[1743765479647,2.2427,1783.5,1783.3,0.00840831]
[1743765480053,0.7464,1783.5,1783.4,1.12154]
[1743765480249,0.75970831,1783.6,1783.5,1.12148]
[1743765480449,0.75970831,1783.6,1783.5,5.47448]
[1743765480848,3.96750831,1783.6,1783.5,4.353]
[1743765481050,0.75970831,1783.6,1783.5,5.47448]
[1743765481252,0.00840831,1783.6,1783.5,46.27448]
[1743765481455,0.00840831,1783.6,1783.5,47.69438]
[1743765482448,8.31e-06,1783.6,1783.5,50.19438]
[1743765482648,4.32872,1784.4,1783.5,50.19438]
[1743765482649,0.7503,1784.3,1784.0,1.12116]
[1743765482856,0.7503,1784.3,1784.2,1.12104]
[1743765483349,2.2776,1784.3,1784.2,1.12104]
[1743765483554,2.2776,1784.3,1784.2,2.56634]
[1743765483555,0.7503,1784.3,1784.2,2.56634]
[1743765484459,3.21334409,1784.4,1784.3,1.12097]
[1743765484655,3.21334409,1784.4,1784.2,2.56632]
[1743765484857,2.267,1784.3,1784.2,1.12104]
[1743765485550,2.267,1784.3,1784.2,2.56634]
[1743765486558,0.7397,1784.3,1784.2,2.56634]
[1743765486762,3.21334409,1784.4,1784.3,1.12097]
[1743765487658,3.21334409,1784.4,1784.2,2.5663]
[1743765487855,4.33428409,1784.4,1784.2,5.7963]
[1743765488163,1.4423,1784.3,1784.2,6.91734]
[1743765488764,3.21334409,1784.4,1784.2,5.7963]
[1743765489062,0.00554409,1784.4,1784.3,1.12097]
[1743765489266,0.00554409,1784.4,1784.3,4.32877]
[1743765489460,0.00554409,1784.4,1784.3,6.82877]
[1743765490756,0.00554409,1784.4,1784.3,1.12097]
[1743765491865,0.00554409,1784.4,1784.3,3.62097]
[1743765493459,0.00554409,1784.4,1784.3,1.12097]
[1743765494264,0.00554409,1784.4,1784.3,4.32877]
[1743765495866,4.09e-06,1784.4,1784.3,6.82877]
[1743765496162,4.09e-06,1784.4,1784.3,7.38957]
[1743765496566,4.09e-06,1784.4,1784.3,8.67777]
[1743765497769,4.09e-06,1784.4,1784.3,11.17777]
[1743765498065,1.419,1784.9,1784.8,1.12066]
[1743765498268,1.419,1784.9,1784.8,5.46866]
[1743765500263,5.828,1785.7,1785.5,1.12017]
[1743765500463,5.461,1785.8,1785.7,1.12009]
[1743765500768,0.7262,1785.8,1785.7,41.92009]
[1743765500962,6.434,1785.8,1785.6,5.4681]
[1743765501175,3.934,1785.8,1785.6,4.348]
[1743765501772,1.1201,1785.7,1785.5,4.347]
[1743765501969,3.2078,1785.6,1785.5,4.347]
[1743765502266,3.2078,1785.6,1785.0,0.45783508]
[1743765502267,2.80056,1785.5,1784.8,1.12063]
[1743765502463,2.80056,1785.5,1784.7,0.00840831]
[1743765502464,3.2078,1785.0,1784.7,0.00840831]
[1743765502772,1.4222,1784.9,1784.8,1.12063]
[1743765503067,2.5428,1784.9,1784.7,0.00840831]
[1743765503269,3.2078,1784.8,1784.7,0.00840831]
[1743765503467,4.32846,1784.8,1784.7,0.00840831]
[1743765503667,2.5,1784.8,1784.6,1.12077]
[1743765503863,1.4222,1784.9,1784.7,1.12069]
[1743765504068,3.2078,1784.8,1784.3,8.59866]
[1743765504367,3.2078,1784.8,1784.3,5.7963]
[1743765504572,3.2078,1784.6,1784.0,38.11088]
[1743765504773,1.12089,1784.5,1784.4,0.00840831]
[1743765505072,3.2078,1784.5,1784.4,1.12931831]
[1743765505270,5.7078,1784.5,1784.4,1.12931831]
[1743765505470,3.2078,1784.5,1784.4,1.12931831]
[1743765506065,3.21620831,1784.7,1784.4,0.00840831]
[1743765506268,4.33692831,1784.7,1784.4,4.35440831]
[1743765506464,0.00840831,1784.7,1784.5,1.12083]
[1743765506669,0.00840831,1784.7,1784.6,1.12078]
[1743765508173,0.00840831,1784.7,1784.5,1.4182]
[1743765508472,0.00840831,1784.7,1784.4,0.00840831]
[1743765508669,3.2078,1784.6,1784.4,0.00840831]
[1743765508874,1.12085,1784.5,1784.4,0.00840831]
[1743765509068,3.2078,1784.6,1784.4,0.00840831]
[1743765509272,1.12917831,1784.7,1784.4,0.00840831]
[1743765509572,0.00840831,1784.7,1784.4,0.00840831]
[1743765509965,4.32862,1784.6,1784.4,0.00840831]
[1743765510165,0.6982,1784.5,1784.4,0.00840831]
[1743765510765,0.6982,1784.5,1784.4,1.48210831]
[1743765511364,0.6982,1784.5,1784.4,0.00840831]
[1743765511572,1.81905,1784.5,1784.4,0.00840831]
[1743765511770,0.6982,1784.5,1784.4,0.00840831]
[1743765511970,1.81905,1784.5,1784.4,0.00840831]
[1743765512172,0.6982,1784.5,1784.4,0.00840831]
[1743765512372,1.81905,1784.5,1784.4,0.00840831]
[1743765512669,0.6982,1784.5,1784.4,0.00840831]
[1743765513070,0.6982,1784.5,1784.4,1.48210831]
[1743765513371,0.6982,1784.5,1784.4,0.00840831]
[1743765513585,3.1982,1784.5,1783.8,5.46727]
[1743765513768,3.2078,1784.4,1783.9,5.7945]
[1743765513971,3.2078,1784.4,1784.0,40.8]
[1743765514276,4.32872,1784.4,1784.0,42.2485]
[1743765514472,3.2078,1784.4,1784.1,2.80275]
[1743765514677,0.00840831,1784.7,1784.2,9.0023]
[1743765514977,0.00840831,1784.7,1784.3,1.12093]
[1743765515165,2.20680831,1784.7,1784.4,1.4485]
[1743765515475,2.20680831,1784.7,1784.5,4.346]
[1743765515969,2.20680831,1784.7,1784.5,5.46682]
[1743765516468,2.20680831,1784.7,1784.5,4.346]
[1743765516673,2.93290831,1784.7,1784.5,4.346]
[1743765516875,2.93290831,1784.7,1784.5,5.46685]
[1743765517270,2.93290831,1784.7,1784.6,1.513]
[1743765517463,2.93290831,1784.7,1784.5,5.46684]
[1743765517669,2.93290831,1784.7,1784.5,4.346]
[1743765518078,4.05363831,1784.7,1784.5,4.346]
[1743765518374,3.2078,1784.6,1784.5,4.346]
[1743765518573,4.6645,1784.6,1784.5,4.346]
[1743765518776,4.6645,1784.6,1784.4,1.12091]
[1743765519276,4.6645,1784.6,1784.4,1.12087]
[1743765519577,7.1645,1784.6,1784.0,40.80840831]
[1743765519874,4.32872,1784.4,1784.1,6.92197]
[1743765520075,1.4298,1784.3,1784.1,6.92197]
[1743765520269,2.1259,1784.3,1784.1,6.92197]
[1743765520465,2.1259,1784.3,1784.2,1.12104]
[1743765520871,2.1259,1784.3,1784.2,2.57594]
[1743765521777,2.1259,1784.3,1784.2,1.4549]
[1743765521972,2.1259,1784.3,1784.2,2.57594]
[1743765522871,2.1259,1784.3,1784.2,1.12104]
[1743765523682,2.1259,1784.3,1784.1,5.46707]
[1743765523874,0.6961,1784.3,1784.2,1.4642]
[1743765524076,0.6961,1784.3,1784.2,2.58524]
[1743765524579,0.6961,1784.3,1784.2,1.4642]
[1743765525082,1.5151,1784.5,1784.2,1.4642]
[1743765525083,2.63596,1784.5,1784.2,1.4642]
[1743765525282,2.63596,1784.5,1784.2,2.58523]
[1743765525581,1.5151,1784.5,1784.3,1.12096]
[1743765525787,1.5151,1784.5,1784.4,1.386]
[1743765526081,2.63595,1784.5,1784.4,1.386]
[1743765527879,2.63595,1784.5,1784.4,4.345]
[1743765528079,0.00840831,1784.7,1784.6,1.12078]
[1743765528285,1.46460831,1784.7,1784.6,1.12078]
[1743765528487,1.46460831,1784.7,1784.4,5.46588]
[1743765528678,1.12081,1784.6,1784.4,5.46588]
[1743765528879,4.32865,1784.5,1784.4,4.345]
[1743765529083,4.3287,1784.5,1784.3,5.46597]
[1743765529284,1.12085,1784.5,1784.3,4.345]
[1743765529481,3.2078,1784.5,1784.0,43.61129831]
[1743765529679,1.12097,1784.3,1784.2,1.121]
[1743765529883,3.2078,1784.3,1784.2,4.345]
[1743765530085,1.121,1784.3,1784.2,4.345]
[1743765530274,1.121,1784.3,1784.2,5.46604]
[1743765530481,1.3847,1784.4,1784.2,5.46601]
[1743765530783,1.12097,1784.3,1784.2,4.345]
[1743765530979,2.50566,1784.4,1784.2,4.345]
[1743765531179,2.50562,1784.4,1784.3,1.12097]
[1743765531381,1.12091,1784.4,1784.3,1.12097]
[1743765531684,1.12097,1784.3,1784.2,5.46604]
[1743765531881,1.12097,1784.3,1784.2,4.345]
[1743765532088,4.32877,1784.3,1784.2,4.345]
[1743765532287,1.12104,1784.2,1784.1,4.345]
[1743765532487,1.1211,1784.1,1784.0,1.12956831]
[1743765532784,1.1211,1784.1,1784.0,0.00840831]
[1743765532986,1.12134,1783.8,1783.6,4.345]
[1743765533180,3.2078,1783.9,1783.6,4.345]
[1743765533378,1.12135,1783.7,1783.6,4.345]
[1743765533690,4.32915,1783.7,1783.6,4.345]
[1743765533983,4.31257,1783.9,1783.6,4.345]
[1743765533984,5.4114,1783.9,1783.6,4.345]
[1743765534184,1.12135,1783.7,1783.6,5.46638]
[1743765534383,1.12133,1783.8,1783.6,5.46638]
[1743765534585,1.12135,1783.7,1783.6,4.345]
[1743765535395,1.12132,1783.8,1783.6,5.46638]
[1743765535986,3.2078,1783.9,1783.6,4.345]
[1743765536187,4.32907,1783.9,1783.7,1.12134]
[1743765536387,1.12129,1783.8,1783.6,5.46636]
[1743765536987,3.2078,1783.9,1783.6,4.345]
[1743765537287,6.01087,1783.9,1783.6,4.345]
[1743765537493,1.12135,1783.7,1783.6,4.345]
[1743765538285,1.12159,1783.4,1783.3,4.345]
[1743765538487,1.12154,1783.4,1783.3,4.345]
[1743765538682,4.6785,1783.5,1783.3,45.145]
[1743765538887,2.5922,1783.5,1783.3,46.26657]
[1743765539093,1.12154,1783.4,1783.3,45.145]
[1743765539687,0.00840831,1783.5,1783.3,45.145]
[1743765539994,0.00840831,1783.5,1783.4,1.12154]
[1743765540297,0.00840831,1783.5,1783.3,46.26655]
[1743765540986,0.00840831,1783.5,1783.3,45.145]
[1743765541392,1.50940831,1783.5,1783.3,4.345]
[1743765541694,1.12154,1783.4,1783.3,4.345]
[1743765542091,1.1216,1783.3,1783.2,45.15340831]
[1743765542394,3.33869,1783.4,1783.2,0.00840831]
[1743765542591,1.1216,1783.3,1783.2,4.35340831]
[1743765542790,3.33869,1783.4,1783.2,4.35340831]
[1743765542990,2.2171,1783.4,1783.2,4.35340831]
[1743765543393,3.33868,1783.4,1783.2,4.35340831]
[1743765543594,2.2171,1783.4,1783.3,1.1216]
[1743765543787,0.00840831,1783.5,1783.4,1.12154]
[1743765543989,5.828,1783.9,1783.8,1.12129]
[1743765544191,3.2078,1783.9,1783.6,4.345]
[1743765544395,3.2078,1783.7,1783.6,4.345]
[1743765544596,1.12133,1783.8,1783.6,4.345]
[1743765544796,1.5245,1784.0,1783.6,4.345]
[1743765545099,1.12129,1783.8,1783.6,5.46636]
[1743765545401,1.12129,1783.8,1783.7,1.4346]
[1743765545997,2.64579,1783.8,1783.7,1.4346]
[1743765547395,0.00840831,1784.0,1783.7,3.9346]
[1743765547599,0.00840831,1784.0,1783.9,1.12122]
[1743765547899,0.00840831,1784.0,1783.9,5.46522]
[1743765548294,0.00840831,1784.0,1783.9,4.344]
[1743765548488,1.12956831,1784.0,1783.9,4.344]
[1743765548687,0.00840831,1784.0,1783.9,4.344]
[1743765549891,0.00840831,1784.0,1783.9,6.91402]
[1743765550090,0.00840831,1784.0,1783.9,5.7928]
[1743765550296,1.47890831,1784.0,1783.6,1.12136]
[1743765550496,1.12133,1783.8,1783.7,4.344]
[1743765550694,4.32915,1783.7,1783.6,5.7844]
[1743765550895,5.79965,1783.7,1783.6,5.7844]
[1743765551189,1.4705,1783.7,1783.6,5.7844]
[1743765551492,5.79965,1783.7,1783.6,4.344]
[1743765551797,4.6783,1783.7,1783.3,1.4404]
[1743765551986,1.12152,1783.5,1783.3,6.90595]
[1743765552193,1.4705,1783.4,1783.3,2.56195]
[1743765552391,1.4705,1783.4,1783.3,6.90595]
[1743765552588,4.6783,1783.4,1783.3,2.562]
[1743765552786,5.79984,1783.4,1783.3,2.562]
[1743765553199,5.79984,1783.4,1783.3,1.4404]
[1743765553696,4.6783,1783.4,1783.3,2.562]
[1743765554001,1.83122,1783.6,1783.3,1.4404]
[1743765554298,1.83125,1783.6,1783.4,2.54489]
[1743765554494,1.83125,1783.6,1783.4,1.4234]
[1743765554694,4.32928,1783.5,1783.4,2.5449]
[1743765554997,5.71508,1783.5,1783.4,1.4234]
[1743765555186,4.5936,1783.5,1783.4,2.54494]
[1743765555388,0.7098,1783.6,1783.5,1.12148]
[1743765555589,3.2078,1783.7,1783.6,1.12141]
[1743765555791,1.859,1783.8,1783.5,6.88883]
[1743765555990,0.7377,1783.8,1783.5,6.88883]
[1743765556193,0.7377,1783.8,1783.5,5.7674]
[1743765556398,3.29943,1783.8,1783.5,5.7674]
[1743765556597,1.12135,1783.7,1783.5,5.7674]
[1743765556794,1.12139,1783.7,1783.5,5.7674]
[1743765557197,4.32919,1783.7,1783.5,5.7674]
[1743765557397,2.1781,1783.8,1783.5,5.7674]
[1743765557599,4.32917,1783.7,1783.5,5.7674]
[1743765557790,1.12141,1783.6,1783.5,5.7674]
[1743765557996,1.12141,1783.6,1783.5,4.344]
[1743765558298,1.4404,1783.6,1783.3,5.7648]
[1743765558503,1.4404,1783.6,1783.4,1.4218]
[1743765558699,1.12141,1783.6,1783.4,1.4218]
[1743765558891,3.9251,1783.7,1783.4,1.4218]
[1743765559291,5.0465,1783.7,1783.4,1.4218]
[1743765559493,0.7377,1783.8,1783.4,1.4218]
[1743765559693,1.12136,1783.7,1783.4,2.54328]
[1743765559898,1.12136,1783.7,1783.4,1.4218]
[1743765560109,1.12136,1783.7,1783.4,2.54333]
[1743765560400,1.12142,1783.6,1783.4,1.4218]
[1743765560600,1.12136,1783.7,1783.4,2.54333]
[1743765561190,3.32823,1783.8,1783.5,1.12146]
[1743765561395,1.12135,1783.7,1783.6,5.8444]
[1743765561803,3.32822,1783.8,1783.6,5.8444]
[1743765561996,2.2069,1783.8,1783.7,1.5014]
[1743765562399,0.7377,1783.8,1783.7,1.5014]
[1743765562598,4.32906,1783.9,1783.7,1.5014]
[1743765563404,0.00840831,1784.0,1783.9,1.12122]
[1743765563697,0.00840831,1784.0,1783.9,6.87932]
[1743765563903,1.12956831,1784.0,1783.9,5.7581]
[1743765564100,4.25482831,1784.0,1783.4,0.3878]
[1743765564305,3.2078,1783.7,1783.5,5.7581]
[1743765564604,1.12141,1783.6,1783.5,5.7581]
[1743765564809,1.4435,1783.8,1783.5,5.7581]
[1743765565006,1.4435,1783.8,1783.5,1.4151]
[1743765565198,1.12139,1783.7,1783.5,6.87956]
[1743765565808,4.32919,1783.7,1783.5,6.87956]
[1743765566005,3.2078,1783.7,1783.6,1.12141]
[1743765566506,3.2078,1783.7,1783.5,6.87953]
[1743765566709,3.2078,1783.7,1783.6,1.12141]
[1743765567405,0.00840831,1784.0,1783.6,1.12141]
[1743765567604,0.00840831,1784.0,1783.9,1.12122]
[1743765568405,0.00840831,1784.0,1783.9,1.4969]
[1743765568806,3.34806831,1784.0,1783.9,1.4969]
[1743765569105,2.22690831,1784.0,1783.9,1.4969]
[1743765569309,2.22690831,1784.0,1783.9,2.61812]
[1743765569807,3.34806831,1784.0,1783.9,2.61812]
[1743765570012,3.34806831,1784.0,1783.9,1.4969]
[1743765570209,2.22690831,1784.0,1783.9,2.61812]
[1743765570410,0.76300831,1784.0,1783.9,2.61812]
[1743765570807,0.76300831,1784.0,1783.8,5.46326]
[1743765571108,5.79292,1783.9,1783.8,5.46329]
[1743765571308,1.4639,1783.9,1783.8,1.12129]
[1743765571506,1.88420831,1784.0,1783.7,5.8379]
[1743765571709,1.12960831,1784.0,1783.7,5.8379]
[1743765571912,0.00840831,1784.0,1783.9,1.12122]
[1743765572912,0.00840831,1784.0,1783.9,3.62122]
[1743765573613,0.00840831,1784.0,1783.9,8.23642]
[1743765574514,0.00840831,1784.0,1783.9,2.52862]
[1743765575509,0.00840831,1784.0,1783.9,1.4074]
[1743765575711,0.00840831,1784.0,1783.9,2.52862]
[1743765576317,0.6913,1784.4,1784.2,1.12098]
[1743765576617,1.81222,1784.4,1784.3,5.8227]
[1743765577014,0.6913,1784.4,1784.3,6.94367]
[1743765577316,1.12091,1784.4,1784.3,5.8227]
[1743765578418,0.00840831,1784.5,1784.3,5.8227]
[1743765578709,0.00840831,1784.5,1784.4,1.516]
[1743765579412,0.00840831,1784.5,1784.4,2.63691]
[1743765579829,0.00840831,1784.5,1784.4,43.43691]
[1743765580513,0.00840831,1784.5,1784.4,45.93691]
[1743765580712,0.00840831,1784.5,1784.4,46.68531]
[1743765581518,3.2078,1785.2,1784.4,51.16892]
[1743765581720,4.32831,1785.1,1784.9,1.12057]
[1743765582018,5.86307,1785.1,1785.0,4.338]
[1743765582411,7.2426,1785.1,1784.8,5.7671]
[1743765582719,1.12073,1784.7,1784.5,5.4588]
[1743765583020,3.41868,1784.6,1784.5,4.338]
[1743765583214,3.0309,1784.6,1784.5,5.45885]
[1743765583620,1.4961,1784.6,1784.5,5.45885]
[1743765583816,0.733,1784.6,1784.5,5.45885]
[1743765586115,0.733,1784.6,1784.5,1.12085]
[1743765586419,0.733,1784.6,1784.5,5.45885]
[1743765587220,0.733,1784.6,1784.5,5.45785]
[1743765587416,0.733,1784.6,1784.3,1.4291]
[1743765587613,5.84528,1784.5,1784.4,4.337]
[1743765587815,1.12097,1784.3,1784.2,0.00840831]
[1743765588020,4.32877,1784.3,1784.2,0.00840831]
[1743765588227,6.82877,1784.3,1784.2,0.00840831]
[1743765588414,1.12116,1784.0,1783.9,4.337]
[1743765588718,3.2078,1784.0,1783.6,1.4963]
[1743765588924,4.32909,1783.8,1783.7,4.337]
[1743765589312,5.84569,1783.8,1783.7,4.337]
[1743765589713,1.12135,1783.7,1783.6,1.12981831]
[1743765589921,2.64565,1783.7,1783.6,5.46681831]
[1743765590120,1.5243,1783.7,1783.6,5.46681831]
[1743765590510,1.5243,1783.7,1783.6,4.34540831]
[1743765590715,2.64565,1783.7,1783.6,4.34540831]
[1743765591115,2.64565,1783.7,1783.6,0.00840831]
[1743765591318,5.14565,1783.7,1783.6,0.00840831]
[1743765591517,5.85005,1783.7,1783.6,0.00840831]
[1743765592321,1.12154,1783.4,1783.2,5.7815]
[1743765592526,3.2078,1783.3,1783.2,5.7815]
[1743765592712,3.2078,1783.3,1782.9,40.8]
[1743765592912,4.32959,1783.0,1782.9,1.4858]
[1743765593119,6.1873,1783.2,1782.9,5.8228]
[1743765593321,7.30899,1783.2,1782.9,5.8228]
[1743765593825,3.2078,1783.6,1782.9,11.83517]
[1743765594015,2.251,1783.6,1783.1,6.01209]
[1743765594220,2.251,1783.6,1783.3,1.12156]
[1743765594420,3.37242,1783.6,1783.4,1.4858]
[1743765594623,2.251,1783.6,1783.4,1.4858]
[1743765594816,5.05763,1783.8,1783.5,4.337]
[1743765595119,5.05763,1783.8,1783.6,1.4858]
[1743765595620,1.12135,1783.7,1783.6,1.4858]
[1743765595822,1.12141,1783.6,1783.5,4.337]
[1743765596022,4.32921,1783.6,1783.5,4.337]
[1743765596224,1.12141,1783.6,1783.5,4.337]
[1743765596523,1.12166,1783.3,1783.1,4.7405]
[1743765596725,1.12166,1783.3,1783.2,5.8697]
[1743765597829,4.32937,1783.4,1783.2,5.8697]
[1743765598015,4.7129,1783.4,1783.2,5.8697]
[1743765598221,1.1216,1783.3,1783.2,5.8697]
[1743765598421,1.12172,1783.2,1782.8,0.00840831]
[1743765598619,1.5051,1783.1,1782.9,4.337]
[1743765598823,1.5051,1783.1,1783.0,1.4929]
[1743765599024,3.9054,1783.3,1783.0,1.4929]
[1743765599224,1.3989,1783.2,1783.0,1.4929]
[1743765599426,2.52056,1783.2,1783.0,1.4929]
[1743765599628,2.52056,1783.2,1783.0,5.8289]
[1743765599825,1.3989,1783.2,1783.0,5.8289]
[1743765600531,1.84403,1783.1,1783.0,5.8289]
[1743765600833,0.7223,1783.1,1783.0,5.8289]
[1743765601022,3.9301,1783.1,1783.0,5.8289]
[1743765601226,0.7223,1783.1,1783.0,5.8289]
[1743765601930,0.6976,1783.3,1783.2,1.12166]
[1743765602126,3.36326,1783.6,1783.3,1.12157]
[1743765602335,4.06416,1783.6,1783.4,1.4829]
[1743765602531,2.9427,1783.6,1783.5,40.8]
[1743765602739,1.12148,1783.5,1783.4,1.4829]
[1743765602935,2.61778,1783.5,1783.4,1.4829]